fUSD/lending_fUSD_20240105
["ID","MTS","AMOUNT","RATE_DAILY","PERIOD"]
[310324464,1704473467552,-555.27,0.00030684,2]
[310324465,1704473467563,-500.0,0.00030684,2]
[310324466,1704473467574,-6614.78,0.00030684,2]
[310324467,1704473467584,-500.0,0.00030684,2]
[310324468,1704473467595,-500.0,0.00030684,2]
[310324469,1704473467606,-359.17385507,0.00030684,2]
[310324470,1704473467617,-1289.91,0.00030684,2]
[310324471,1704473467627,-500.0,0.00030684,2]
[310324472,1704473467638,-1136.89,0.00030684,2]
[310324473,1704473467648,-500.0,0.00030684,2]
[310324474,1704473467658,-646.07,0.00030684,2]
[310324475,1704473467669,-500.0,0.00030684,2]
[310324476,1704473467680,-500.0,0.00030684,2]
[310324477,1704473467690,-500.0,0.00030684,2]
[310324478,1704473467701,-588.45,0.00030684,2]
[310324479,1704473467712,-1154.77,0.00030684,2]
[310324480,1704473467723,-500.0,0.00030684,2]
[310324481,1704473467734,-500.0,0.00030684,2]
[310324482,1704473467746,-1148.85,0.00030684,2]
[310324483,1704473467756,-500.0,0.00030684,2]
[310324484,1704473467767,-500.0,0.00030684,2]
[310324485,1704473467778,-500.0,0.00030684,2]
[310324486,1704473467788,-500.0,0.00030684,2]
[310324487,1704473467799,-864.89,0.00030684,2]
[310324488,1704473467809,-500.0,0.00030684,2]
[310324489,1704473467820,-746.81,0.00030684,2]
[310324490,1704473467830,-500.0,0.00030684,2]
[310324491,1704473467840,-1086.86,0.00030684,2]
[310324492,1704473467851,-1747.09,0.00030684,2]
[310324493,1704473467861,-500.0,0.00030684,2]
[310324494,1704473467877,-585.14,0.00030684,2]
[310324495,1704473467887,-500.0,0.00030684,2]
[310324496,1704473467897,-500.0,0.00030684,2]
[310324497,1704473467909,-500.0,0.00030684,2]
[310324498,1704473467919,-500.0,0.00030684,2]
[310324499,1704473467930,-500.0,0.00030684,2]
[310324500,1704473467940,-500.0,0.00030684,2]
[310324501,1704473467951,-500.0,0.00030684,2]
[310324502,1704473467962,-500.0,0.00030684,2]
[310324503,1704473467973,-500.0,0.00030684,2]
[310324504,1704473467984,-680.71,0.00030684,2]
[310324505,1704473467996,-898.8,0.00030684,2]
[310324506,1704473468006,-500.0,0.00030684,2]
[310324507,1704473468017,-581.39,0.00030684,2]
[310324508,1704473468028,-500.0,0.00030684,2]
[310324509,1704473468038,-2794.23,0.00030684,2]
[310324510,1704473468048,-2835.72,0.00030684,2]
[310324511,1704473468058,-2858.86,0.00030684,2]
[310324512,1704473468069,-500.0,0.00030684,2]
[310324513,1704473468079,-500.0,0.00030684,2]
[310324514,1704473468090,-500.0,0.00030684,2]
[310324515,1704473468101,-500.0,0.00030684,2]
[310324516,1704473468111,-533.41,0.00030684,2]
[310324517,1704473468121,-500.0,0.00030684,2]
[310324518,1704473468132,-500.0,0.00030684,2]
[310324519,1704473468143,-2517.57,0.00030684,2]
[310324520,1704473468154,-1374.42,0.00030684,2]
[310324521,1704473468164,-500.0,0.00030684,2]
[310324522,1704473468175,-500.0,0.00030684,2]
[310324523,1704473468185,-500.0,0.00030684,2]
[310324524,1704473468196,-500.0,0.00030684,2]
[310324525,1704473468207,-2755.52,0.00030684,2]
[310324526,1704473468218,-2511.86,0.00030684,2]
[310324527,1704473468229,-500.0,0.00030684,2]
[310324528,1704473468242,-500.0,0.00030684,2]
[310324529,1704473468253,-1222.0,0.00030684,2]
[310324530,1704473468263,-4236.93,0.00030684,2]
[310324531,1704473468273,-814.18,0.00030684,2]
[310324532,1704473468282,-519.60126705,0.00030684,2]
[310324533,1704473468292,-500.0,0.00030684,2]
[310324534,1704473468301,-500.0,0.00030684,2]
[310324535,1704473468310,-2392.95,0.00030684,2]
[310324536,1704473468320,-500.0,0.00030684,2]
[310324537,1704473468330,-1842.01,0.00030684,2]
[310324538,1704473468340,-645.88,0.00030684,2]
[310324539,1704473468350,-804.31,0.00030684,2]
[310324540,1704473468360,-500.0,0.00030684,2]
[310324541,1704473468370,-500.0,0.00030684,2]
[310324542,1704473468379,-780.05,0.00030684,2]
[310324543,1704473468388,-20128.17,0.00030684,2]
[310324544,1704473468398,-500.0,0.00030684,2]
[310324545,1704473468408,-618.16,0.00030684,2]
[310324546,1704473468417,-500.0,0.00030684,2]
[310324547,1704473468427,-500.0,0.00030684,2]
[310324548,1704473468437,-500.0,0.00030684,2]
[310324549,1704473468446,-510.82,0.00030684,2]
[310324550,1704473468456,-500.0,0.00030684,2]
[310324551,1704473468465,-500.0,0.00030684,2]
[310324552,1704473468474,-500.0,0.00030684,2]
[310324553,1704473468485,-1056.97,0.00030684,2]
[310324554,1704473468496,-1483.19,0.00030684,2]
[310324555,1704473468505,-500.0,0.00030684,2]
[310324556,1704473468514,-500.0,0.00030684,2]
[310324557,1704473468523,-500.0,0.00030684,2]
[310324558,1704473468533,-1304.64,0.00030684,2]
[310324559,1704473468542,-500.0,0.00030684,2]
[310324560,1704473468552,-500.0,0.00030684,2]
[310324561,1704473468561,-500.0,0.00030684,2]
[310324562,1704473468571,-3583.58,0.00030684,2]
[310324563,1704473468581,-759.04,0.00030684,2]
[310324564,1704473468591,-3227.18,0.00030684,2]
[310324565,1704473468600,-500.0,0.00030684,2]
[310324566,1704473468610,-1800.48,0.00030684,2]
[310324567,1704473468619,-768.62,0.00030684,2]
[310324568,1704473468630,-500.0,0.00030684,2]
[310324569,1704473468639,-500.0,0.00030684,2]
[310324570,1704473468648,-500.0,0.00030684,2]
[310324571,1704473468658,-2756.04,0.00030684,2]
[310324572,1704473468668,-2834.13,0.00030684,2]
[310324573,1704473468677,-1051.18,0.00030684,2]
[310324574,1704473468686,-2515.3,0.00030684,2]
[310324575,1704473468695,-500.0,0.00030684,2]
[310324576,1704473468705,-5299.03,0.00030684,2]
[310324577,1704473468715,-500.0,0.00030684,2]
[310324578,1704473468724,-664.57,0.00030684,2]
[310324579,1704473468734,-537.2,0.00030684,2]
[310324580,1704473468744,-500.0,0.00030684,2]
[310324581,1704473468753,-560.49321174,0.00030684,2]
[310324582,1704473468763,-500.0,0.00030684,2]
[310324583,1704473468772,-512.71,0.00030684,2]
[310324584,1704473468782,-500.0,0.00030684,2]
[310324585,1704473468791,-500.0,0.00030684,2]
[310324586,1704473468801,-500.0,0.00030684,2]
[310324587,1704473468810,-500.0,0.00030684,2]
[310324588,1704473468820,-500.0,0.00030684,2]
[310324589,1704473468829,-1696.0,0.00030684,2]
[310324590,1704473468839,-3340.06,0.00030684,2]
[310324591,1704473468848,-500.0,0.00030684,2]
[310324592,1704473468858,-2490.22,0.00030684,2]
[310324593,1704473468870,-1285.5,0.00030684,2]
[310324594,1704473468881,-500.0,0.00030684,2]
[310324595,1704473468890,-561.55456773,0.00030684,2]
[310324596,1704473468899,-848.87,0.00030684,2]
[310324597,1704473468909,-500.0,0.00030684,2]
[310324598,1704473468920,-500.0,0.00030684,2]
[310324599,1704473468929,-554.12,0.00030684,2]
[310324600,1704473468940,-606.02,0.00030684,2]
[310324601,1704473468950,-11508.87,0.00030684,2]
[310324602,1704473468960,-500.0,0.00030684,2]
[310324603,1704473468970,-1649.63,0.00030684,2]
[310324604,1704473468986,-500.0,0.00030684,2]
[310324605,1704473468997,-1188.82,0.00030684,2]
[310324606,1704473469010,-500.0,0.00030684,2]
[310324607,1704473469021,-500.0,0.00030684,2]
[310324608,1704473469031,-687.41,0.00030684,2]
[310324609,1704473469041,-1161.09,0.00030684,2]
[310324610,1704473469056,-500.0,0.00030684,2]
[310324611,1704473469066,-994.25,0.00030684,2]
[310324612,1704473469075,-516.22462092,0.00030684,2]
[310324613,1704473469088,-500.0,0.00030684,2]
[310324614,1704473469099,-3783.36,0.00030684,2]
[310324615,1704473469108,-4030.69,0.00030684,2]
[310324616,1704473469119,-500.0,0.00030684,2]
[310324617,1704473469128,-907.04,0.00030684,2]
[310324618,1704473469142,-500.0,0.00030684,2]
[310324619,1704473469155,-500.0,0.00030684,2]
[310324620,1704473469164,-2006.85,0.00030684,2]
[310324621,1704473469174,-871.44,0.00030684,2]
[310324622,1704473469183,-500.0,0.00030684,2]
[310324623,1704473469193,-607.85810562,0.00030684,2]
[310324624,1704473469202,-500.0,0.00030684,2]
[310324625,1704473469211,-500.0,0.00030684,2]
[310324626,1704473469221,-8452.87,0.00030684,2]
[310324627,1704473469236,-503.53684294,0.00030684,2]
[310324628,1704473469247,-1134.28,0.00030684,2]
[310324629,1704473469256,-500.0,0.00030684,2]
[310324630,1704473469265,-500.0,0.00030684,2]
[310324631,1704473469274,-566.66,0.00030684,2]
[310324632,1704473469283,-430.24703262,0.00030684,2]
[310324633,1704473469293,-1157.92,0.00030684,2]
[310324634,1704473469304,-500.0,0.00030684,2]
[310324635,1704473469314,-500.0,0.00030684,2]
[310324636,1704473469323,-500.0,0.00030684,2]
[310324637,1704473469332,-500.0,0.00030684,2]
[310324638,1704473469343,-512.07,0.00030684,2]
[310324639,1704473469353,-500.0,0.00030684,2]
[310324640,1704473469362,-1638.59,0.00030684,2]
[310324641,1704473469372,-1195.76,0.00030684,2]
[310324642,1704473469381,-1402.48,0.00030684,2]
[310324643,1704473469390,-500.0,0.00030684,2]
[310324644,1704473469400,-502.2731913,0.00030684,2]
[310324645,1704473469412,-7740.43,0.00030684,2]
[310324646,1704473469423,-500.0,0.00030684,2]
[310324647,1704473469432,-500.0,0.00030684,2]
[310324648,1704473469451,-500.0,0.00030684,2]
[310324649,1704473469462,-500.0,0.00030684,2]
[310324650,1704473469472,-500.0,0.00030684,2]
[310324651,1704473469482,-534.49824231,0.00030684,2]
[310324652,1704473469493,-504.28,0.00030684,2]
[310324653,1704473469510,-500.0,0.00030684,2]
[310324654,1704473469519,-1600.27,0.00030684,2]
[310324655,1704473469529,-500.0,0.00030684,2]
[310324656,1704473469539,-500.0,0.00030684,2]
[310324657,1704473469557,-2394.98,0.00030684,2]
[310324658,1704473469567,-500.0,0.00030684,2]
[310324659,1704473469577,-205.85349489,0.00030684,2]
[310324660,1704473469587,-500.0,0.00030684,2]
[310324661,1704473469596,-500.0,0.00030684,2]
[310324662,1704473469606,-1206.82,0.00030684,2]
[310324663,1704473469617,-500.0,0.00030684,2]
[310324664,1704473469627,-500.0,0.00030684,2]
[310324665,1704473469637,-1116.25,0.00030684,2]
[310324666,1704473469647,-1341.2,0.00030684,2]
[310324667,1704473469657,-500.0,0.00030684,2]
[310324668,1704473469667,-1246.52,0.00030684,2]
[310324669,1704473469677,-500.0,0.00030684,2]
[310324670,1704473469687,-500.0,0.00030684,2]
[310324671,1704473469697,-500.0,0.00030684,2]
[310324672,1704473469706,-500.0,0.00030684,2]
[310324673,1704473469716,-500.0,0.00030684,2]
[310324674,1704473469729,-884.54,0.00030684,2]
[310324675,1704473469740,-500.0,0.00030684,2]
[310324676,1704473469750,-293.91620802,0.00030684,2]
[310324677,1704473469760,-3145.82,0.00030684,2]
[310324678,1704473469769,-834.29,0.00030684,2]
[310324679,1704473469779,-1393.24,0.00030684,2]
[310324680,1704473469789,-1151.41,0.00030684,2]
[310324681,1704473469799,-500.0,0.00030684,2]
[310324682,1704473469809,-500.0,0.00030684,2]
[310324683,1704473469818,-500.0,0.00030684,2]
[310324684,1704473469828,-500.0,0.00030684,2]
[310324685,1704473469838,-542.06,0.00030684,2]
[310324686,1704473469857,-790.38,0.00030684,2]
[310324687,1704473469868,-500.0,0.00030684,2]
[310324688,1704473469882,-501.35,0.00030684,2]
[310324689,1704473469892,-1526.32,0.00030684,2]
[310324690,1704473469902,-757.34,0.00030684,2]
[310324691,1704473469922,-500.0,0.00030684,2]
[310324692,1704473469932,-500.0,0.00030684,2]
[310324693,1704473469944,-500.0,0.00030684,2]
[310324694,1704473469955,-550.09577614,0.00030684,2]
[310324695,1704473469965,-150.0,0.00030685,2]
[310324696,1704473469975,-152.32,0.00030773,2]
[310324697,1704473469985,-151.07687174,0.0003078,2]
[310324698,1704473469997,-500.0,0.0003079,10]
[310324699,1704473470009,-2423.05760651,0.00030791,2]
[310324700,1704473470020,-277.16,0.00030824,2]
[310324701,1704473470030,-500.0,0.00030857,2]
[310324702,1704473470041,-500.0,0.00030857,2]
[310324703,1704473470051,-8147.18,0.00030857,2]
[310324704,1704473470061,-8147.18,0.00030857,2]
[310324705,1704473470071,-8147.18,0.00030857,2]
[310324706,1704473470081,-8147.18,0.00030857,2]
[310324707,1704473470091,-8147.24,0.00030857,2]
[310324708,1704473470101,-27615.2374,0.00030858,2]
[310324709,1704473470111,-2000.0,0.000309,2]
[310324710,1704473470121,-208.0,0.0003093,2]
[310324711,1704473470130,-282.0,0.0003093,2]
[310324712,1704473470141,-335.2,0.0003095,2]
[310324713,1704473470152,-500.0,0.00030957,2]
[310324714,1704473470162,-190.4218231,0.00030957,2]
[310324715,1704473470172,-150.0,0.00030957,2]
[310324716,1704473470181,-500.0,0.00030958,2]
[310324717,1704473470191,-500.0,0.00030958,2]
[310324718,1704473470201,-500.0,0.00030958,2]
[310324719,1704473470211,-500.0,0.00030958,2]
[310324720,1704473470221,-500.0,0.00030958,2]
[310324721,1704473470231,-500.0,0.00030958,2]
[310324722,1704473470244,-500.0,0.00030958,2]
[310324723,1704473470253,-500.0,0.00030958,2]
[310324724,1704473470263,-500.0,0.00030958,2]
[310324725,1704473470272,-500.0,0.00030958,2]
[310324726,1704473470282,-500.0,0.00030958,2]
[310324727,1704473470291,-500.0,0.00030958,2]
[310324728,1704473470302,-500.0,0.00030958,2]
[310324729,1704473470312,-500.0,0.00030958,2]
[310324730,1704473470321,-500.0,0.00030958,2]
[310324731,1704473470331,-500.0,0.00030958,2]
[310324732,1704473470341,-500.0,0.00030958,2]
[310324733,1704473470350,-500.0,0.00030958,2]
[310324734,1704473470360,-500.0,0.00030958,2]
[310324735,1704473470370,-500.0,0.00030958,2]
[310324736,1704473470379,-679.76,0.00030958,2]
[310324737,1704473470389,-500.0,0.00030958,2]
[310324738,1704473470399,-526.40903206,0.00030958,2]
[310324739,1704473470410,-500.0,0.00030958,2]
[310324740,1704473470420,-500.0,0.00030958,2]
[310324741,1704473470429,-538.90628138,0.00030958,2]
[310324742,1704473470439,-500.0,0.00030958,2]
[310324743,1704473470449,-500.0,0.00030958,2]
[310324744,1704473470459,-500.0,0.00030958,2]
[310324745,1704473470469,-500.0,0.00030958,2]
[310324746,1704473470479,-500.0,0.00030958,2]
[310324747,1704473470489,-500.0,0.00030958,2]
[310324748,1704473470499,-500.0,0.00030958,2]
[310324749,1704473470509,-500.0,0.00030958,2]
[310324750,1704473470519,-180.93485461,0.00030958,2]
[310324751,1704473470530,-500.0,0.00030958,2]
[310324752,1704473470539,-500.0,0.00030958,2]
[310324753,1704473470550,-500.0,0.00030958,2]
[310324754,1704473470560,-500.0,0.00030958,2]
[310324755,1704473470570,-500.0,0.00030958,2]
[310324756,1704473470581,-500.0,0.00030958,2]
[310324757,1704473470591,-500.0,0.00030958,2]
[310324758,1704473470601,-500.0,0.00030958,2]
[310324759,1704473470612,-500.0,0.00030958,2]
[310324760,1704473470622,-500.0,0.00030958,2]
[310324761,1704473470633,-500.0,0.00030958,2]
[310324762,1704473470643,-500.0,0.00030958,2]
[310324763,1704473470654,-500.0,0.00030958,2]
[310324764,1704473470664,-500.0,0.00030958,2]
[310324765,1704473470674,-500.0,0.00030958,2]
[310324766,1704473470684,-500.0,0.00030958,2]
[310324767,1704473470694,-500.0,0.00030958,2]
[310324768,1704473470704,-500.0,0.00030958,2]
[310324769,1704473470714,-500.0,0.00030958,2]
[310324770,1704473470724,-500.0,0.00030958,2]
[310324771,1704473470733,-500.0,0.00030958,2]
[310324772,1704473470745,-500.0,0.00030958,2]
[310324773,1704473470756,-500.0,0.00030958,2]
[310324774,1704473470766,-500.0,0.00030958,2]
[310324775,1704473470776,-500.0,0.00030958,2]
[310324776,1704473470786,-500.0,0.00030958,2]
[310324777,1704473470795,-500.0,0.00030958,2]
[310324778,1704473470805,-500.0,0.00030958,2]
[310324779,1704473470815,-569.50911371,0.00030958,2]
[310324780,1704473470825,-500.0,0.00030958,2]
[310324781,1704473470835,-500.0,0.00030958,2]
[310324782,1704473470845,-500.0,0.00030958,2]
[310324783,1704473470855,-500.0,0.00030958,2]
[310324784,1704473470866,-414.34360735,0.00030958,2]
[310324785,1704473470880,-500.0,0.00030958,2]
[310324786,1704473470891,-500.0,0.00030958,2]
[310324787,1704473470902,-500.0,0.00030958,2]
[310324788,1704473470913,-500.0,0.00030958,2]
[310324789,1704473470923,-500.0,0.00030958,2]
[310324790,1704473470933,-500.0,0.00030958,2]
[310324791,1704473470942,-449.59642767,0.00030958,2]
[310324792,1704473470952,-500.0,0.00030958,2]
[310324793,1704473470961,-500.0,0.00030958,2]
[310324794,1704473470971,-500.0,0.00030958,2]
[310324795,1704473470981,-500.0,0.00030958,2]
[310324796,1704473470992,-500.0,0.00030958,2]
[310324797,1704473471001,-299.56849154,0.00030958,2]
[310324798,1704473471011,-732.22,0.00030958,2]
[310324799,1704473471021,-500.0,0.00030958,2]
[310324800,1704473471031,-615.6769062,0.00030958,2]
[310324801,1704473471041,-500.0,0.00030958,2]
[310324802,1704473471052,-500.0,0.00030958,2]
[310324803,1704473471062,-500.0,0.00030958,2]
[310324804,1704473471071,-500.0,0.00030958,2]
[310324805,1704473471081,-232.01505544,0.00030958,2]
[310324806,1704473471091,-500.0,0.00030958,2]
[310324807,1704473471101,-500.0,0.00030958,2]
[310324808,1704473471111,-500.0,0.00030958,2]
[310324809,1704473471120,-500.0,0.00030958,2]
[310324810,1704473471130,-229.61030852,0.00030958,2]
[310324811,1704473471140,-500.0,0.00030958,2]
[310324812,1704473471149,-557.95,0.00030958,2]
[310324813,1704473471158,-500.0,0.00030958,2]
[310324814,1704473471168,-711.61,0.00030958,2]
[310324815,1704473471178,-500.0,0.00030958,2]
[310324816,1704473471188,-777.32,0.00030958,2]
[310324817,1704473471197,-500.0,0.00030958,2]
[310324818,1704473471207,-500.0,0.00030958,2]
[310324819,1704473471217,-500.0,0.00030958,2]
[310324820,1704473471227,-500.0,0.00030958,2]
[310324821,1704473471236,-500.0,0.00030958,2]
[310324822,1704473471248,-500.0,0.00030958,2]
[310324823,1704473471258,-500.0,0.00030958,2]
[310324824,1704473471267,-500.0,0.00030958,2]
[310324825,1704473471277,-500.0,0.00030958,2]
[310324826,1704473471286,-500.0,0.00030958,2]
[310324827,1704473471296,-500.0,0.00030958,2]
[310324828,1704473471306,-500.0,0.00030958,2]
[310324829,1704473471316,-500.0,0.00030958,2]
[310324830,1704473471326,-500.0,0.00030958,2]
[310324831,1704473471335,-500.0,0.00030958,2]
[310324832,1704473471345,-500.0,0.00030958,2]
[310324833,1704473471355,-500.0,0.00030958,2]
[310324834,1704473471366,-592.48,0.00030958,2]
[310324835,1704473471376,-500.0,0.00030958,2]
[310324836,1704473471516,-500.0,0.00030958,2]
[310324837,1704473471529,-500.0,0.00030958,2]
[310324838,1704473471540,-500.0,0.00030958,2]
[310324839,1704473471550,-500.0,0.00030958,2]
[310324840,1704473471561,-1000.0,0.00030958,2]
[310324841,1704473471572,-500.0,0.00030958,2]
[310324842,1704473471583,-996.51,0.00030958,2]
[310324843,1704473471594,-500.0,0.00030958,2]
[310324844,1704473471605,-500.0,0.00030958,2]
[310324845,1704473471616,-629.52465151,0.00030958,2]
[310324846,1704473471626,-500.0,0.00030958,2]
[310324847,1704473471638,-500.0,0.00030958,2]
[310324848,1704473471649,-500.0,0.00030958,2]
[310324849,1704473471661,-500.0,0.00030958,2]
[310324850,1704473471672,-500.0,0.00030958,2]
[310324851,1704473471683,-500.0,0.00030958,2]
[310324852,1704473471694,-710.5,0.00030958,2]
[310324853,1704473471705,-500.0,0.00030958,2]
[310324854,1704473471716,-500.0,0.00030958,2]
[310324855,1704473471727,-500.0,0.00030958,2]
[310324856,1704473471738,-500.0,0.00030958,2]
[310324857,1704473471753,-666.1,0.00030958,2]
[310324858,1704473471763,-537.71,0.00030958,2]
[310324859,1704473471774,-500.0,0.00030958,2]
[310324860,1704473471784,-500.0,0.00030958,2]
[310324861,1704473471794,-617.72,0.00030958,2]
[310324862,1704473471804,-500.0,0.00030958,2]
[310324863,1704473471815,-500.0,0.00030958,2]
[310324864,1704473471826,-647.0,0.00030958,2]
[310324865,1704473471836,-500.0,0.00030958,2]
[310324866,1704473471847,-500.0,0.00030958,2]
[310324867,1704473471857,-500.0,0.00030958,2]
[310324868,1704473471867,-500.0,0.00030958,2]
[310324869,1704473471882,-500.0,0.00030958,2]
[310324870,1704473471892,-772.2,0.00030958,2]
[310324871,1704473471902,-500.0,0.00030958,2]
[310324872,1704473471912,-500.0,0.00030958,2]
[310324873,1704473471922,-500.0,0.00030958,2]
[310324874,1704473471932,-500.0,0.00030958,2]
[310324875,1704473471943,-500.0,0.00030958,2]
[310324876,1704473471953,-500.0,0.00030958,2]
[310324877,1704473471963,-537.87,0.00030958,2]
[310324878,1704473471972,-1038.34,0.00030958,2]
[310324879,1704473471982,-500.0,0.00030958,2]
[310324880,1704473471993,-500.0,0.00030958,2]
[310324881,1704473472003,-500.0,0.00030958,2]
[310324882,1704473472013,-500.0,0.00030958,2]
[310324883,1704473472024,-500.0,0.00030958,2]
[310324884,1704473472034,-500.0,0.00030958,2]
[310324885,1704473472044,-500.0,0.00030958,2]
[310324886,1704473472053,-500.0,0.00030958,2]
[310324887,1704473472063,-500.0,0.00030958,2]
[310324888,1704473472074,-500.0,0.00030958,2]
[310324889,1704473472085,-500.0,0.00030958,2]
[310324890,1704473472095,-500.0,0.00030958,2]
[310324891,1704473472106,-500.0,0.00030958,2]
[310324892,1704473472116,-544.08,0.00030958,2]
[310324893,1704473472125,-500.0,0.00030958,2]
[310324894,1704473472136,-500.0,0.00030958,2]
[310324895,1704473472146,-500.0,0.00030958,2]
[310324896,1704473472157,-656.98,0.00030958,2]
[310324897,1704473472167,-500.0,0.00030958,2]
[310324898,1704473472177,-500.0,0.00030958,2]
[310324899,1704473472187,-500.0,0.00030958,2]
[310324900,1704473472198,-500.0,0.00030958,2]
[310324901,1704473472208,-500.0,0.00030958,2]
[310324902,1704473472219,-500.0,0.00030958,2]
[310324903,1704473472230,-669.87,0.00030958,2]
[310324904,1704473472240,-500.0,0.00030958,2]
[310324905,1704473472252,-500.0,0.00030958,2]
[310324906,1704473472263,-500.0,0.00030958,2]
[310324907,1704473472272,-500.0,0.00030958,2]
[310324908,1704473472283,-694.38,0.00030958,2]
[310324909,1704473472294,-500.0,0.00030958,2]
[310324910,1704473472303,-742.45,0.00030958,2]
[310324911,1704473472314,-500.0,0.00030958,2]
[310324912,1704473472324,-500.0,0.00030958,2]
[310324913,1704473472333,-500.0,0.00030958,2]
[310324914,1704473472344,-500.0,0.00030958,2]
[310324915,1704473472353,-500.0,0.00030958,2]
[310324916,1704473472363,-500.0,0.00030958,2]
[310324917,1704473472373,-544.16,0.00030958,2]
[310324918,1704473472383,-671.99,0.00030958,2]
[310324919,1704473472394,-669.51,0.00030958,2]
[310324920,1704473472403,-500.0,0.00030958,2]
[310324921,1704473472414,-500.0,0.00030958,2]
[310324922,1704473472423,-548.59,0.00030958,2]
[310324923,1704473472433,-500.0,0.00030958,2]
[310324924,1704473472444,-500.0,0.00030958,2]
[310324925,1704473472454,-500.0,0.00030958,2]
[310324926,1704473472464,-500.0,0.00030958,2]
[310324927,1704473472475,-500.0,0.00030958,2]
[310324928,1704473472484,-500.0,0.00030958,2]
[310324929,1704473472494,-500.0,0.00030958,2]
[310324930,1704473472504,-500.0,0.00030958,2]
[310324931,1704473472514,-1530.36,0.00030958,2]
[310324932,1704473472524,-583.81,0.00030958,2]
[310324933,1704473472535,-589.58318044,0.00030958,2]
[310324934,1704473472546,-500.0,0.00030958,2]
[310324935,1704473472556,-500.0,0.00030958,2]
[310324936,1704473472566,-500.0,0.00030958,2]
[310324937,1704473472577,-500.0,0.00030958,2]
[310324938,1704473472587,-500.0,0.00030958,2]
[310324939,1704473472597,-500.0,0.00030958,2]
[310324940,1704473472607,-500.0,0.00030958,2]
[310324941,1704473472617,-500.0,0.00030958,2]
[310324942,1704473472628,-500.0,0.00030958,2]
[310324943,1704473472637,-500.0,0.00030958,2]
[310324944,1704473472648,-754.95,0.00030958,2]
[310324945,1704473472658,-344.63651471,0.00030958,2]
[310324946,1704473472669,-500.0,0.00030958,2]
[310324947,1704473472679,-500.0,0.00030958,2]
[310324948,1704473472690,-500.0,0.00030958,2]
[310324949,1704473472700,-500.0,0.00030958,2]
[310324950,1704473472710,-500.0,0.00030958,2]
[310324951,1704473472720,-500.0,0.00030958,2]
[310324952,1704473472730,-500.0,0.00030958,2]
[310324953,1704473472740,-500.0,0.00030958,2]
[310324954,1704473472751,-500.0,0.00030958,2]
[310324955,1704473472761,-500.0,0.00030958,2]
[310324956,1704473472771,-500.0,0.00030958,2]
[310324957,1704473472782,-500.0,0.00030958,2]
[310324958,1704473472792,-500.0,0.00030958,2]
[310324959,1704473472802,-500.0,0.00030958,2]
[310324960,1704473472812,-500.0,0.00030958,2]
[310324961,1704473472822,-500.0,0.00030958,2]
[310324962,1704473472832,-500.0,0.00030958,2]
[310324963,1704473472842,-500.0,0.00030958,2]